[Event "Titled Tuesday Blitz April 05 Early 2022"]
[White "Plazuelo Pascual, Juan"]
[Black "Shipov, Sergei"]
[WhiteFideId "32059566"]
[BlackFideId "4113624"]
[WhiteElo "2446"]
[BlackElo "2737"]
[Result "1/2-1/2"]
[Round "02"]
[TimeControl "180+1"]
[Date "2022.04.05"]
[WhiteClock "0:00:06"]
[BlackClock "0:00:07"]

1. d4 {[%clk 0:02:59]}  Nf6 {[%clk 0:02:57]} 2. c4 {[%clk 0:02:59]}  c5 {[%clk 0:02:57]} 3. d5 {[%clk 0:02:59]}  b5 {[%clk 0:02:57]} 4. cxb5 {[%clk 0:03:00]}  a6 {[%clk 0:02:58]} 5. e3 {[%clk 0:03:00]}  g6 {[%clk 0:02:51]} 6. Nc3 {[%clk 0:03:00]}  Bg7 {[%clk 0:02:51]} 7. a4 {[%clk 0:03:00]}  O-O {[%clk 0:02:50]} 8. e4 {[%clk 0:03:00]}  Bb7 {[%clk 0:02:50]} 9. Nf3 {[%clk 0:02:57]}  e6 {[%clk 0:02:49]} 10. Be2 {[%clk 0:02:50]}  axb5 {[%clk 0:02:48]} 11. Bxb5 {[%clk 0:02:50]}  exd5 {[%clk 0:02:48]} 12. exd5 {[%clk 0:02:51]}  Re8+ {[%clk 0:02:47]} 13. Be3 {[%clk 0:02:51]}  Ng4 {[%clk 0:02:47]} 14. O-O {[%clk 0:02:49]}  Nxe3 {[%clk 0:02:36]} 15. fxe3 {[%clk 0:02:47]}  Rxe3 {[%clk 0:02:35]} 16. d6 {[%clk 0:02:29]}  Nc6 {[%clk 0:01:42]} 17. Nd5 {[%clk 0:02:22]}  Re4 {[%clk 0:01:41]} 18. Kh1 {[%clk 0:01:57]}  Nd4 {[%clk 0:00:55]} 19. Ne7+ {[%clk 0:01:33]}  Rxe7 {[%clk 0:00:39]} 20. dxe7 {[%clk 0:01:34]}  Qxe7 {[%clk 0:00:40]} 21. Nxd4 {[%clk 0:01:34]}  Bxd4 {[%clk 0:00:39]} 22. Bc4 {[%clk 0:01:15]}  d5 {[%clk 0:00:37]} 23. Bb5 {[%clk 0:01:15]}  Bxb2 {[%clk 0:00:33]} 24. Ra2 {[%clk 0:01:13]}  Bg7 {[%clk 0:00:28]} 25. a5 {[%clk 0:01:03]}  Qd6 {[%clk 0:00:20]} 26. Qf3 {[%clk 0:00:47]}  Rf8 {[%clk 0:00:17]} 27. a6 {[%clk 0:00:46]}  Ba8 {[%clk 0:00:17]} 28. Qg3 {[%clk 0:00:41]}  Qxg3 {[%clk 0:00:16]} 29. hxg3 {[%clk 0:00:42]}  c4 {[%clk 0:00:16]} 30. a7 {[%clk 0:00:27]}  c3 {[%clk 0:00:16]} 31. Rb1 {[%clk 0:00:22]}  Be5 {[%clk 0:00:12]} 32. Kh2 {[%clk 0:00:18]}  d4 {[%clk 0:00:12]} 33. Bd3 {[%clk 0:00:18]}  h5 {[%clk 0:00:12]} 34. Ra5 {[%clk 0:00:17]}  Bc7 {[%clk 0:00:09]} 35. Rc5 {[%clk 0:00:15]}  Bd6 {[%clk 0:00:09]} 36. Rc4 {[%clk 0:00:12]}  h4 {[%clk 0:00:10]} 37. Rxd4 {[%clk 0:00:13]}  Bxg3+ {[%clk 0:00:10]} 38. Kg1 {[%clk 0:00:13]}  Rc8 {[%clk 0:00:10]} 39. Rc4 {[%clk 0:00:13]}  Rxc4 {[%clk 0:00:09]} 40. Bxc4 {[%clk 0:00:13]}  Kg7 {[%clk 0:00:09]} 41. Bd3 {[%clk 0:00:13]}  Be5 {[%clk 0:00:09]} 42. Rb8 {[%clk 0:00:11]}  Bd4+ {[%clk 0:00:09]} 43. Kf1 {[%clk 0:00:11]}  Bxg2+ {[%clk 0:00:09]} 44. Kxg2 {[%clk 0:00:12]}  Bxa7 {[%clk 0:00:09]} 45. Rb7 {[%clk 0:00:12]}  Bd4 {[%clk 0:00:09]} 46. Kf3 {[%clk 0:00:12]}  Kf8 {[%clk 0:00:07]} 47. Rd7 {[%clk 0:00:12]}  Be5 {[%clk 0:00:06]} 48. Rd5 {[%clk 0:00:11]}  Bg7 {[%clk 0:00:04]} 49. Kg4 {[%clk 0:00:12]}  f5+ {[%clk 0:00:04]} 50. Kxh4 {[%clk 0:00:11]}  Bf6+ {[%clk 0:00:05]} 51. Kg3 {[%clk 0:00:12]}  Ke7 {[%clk 0:00:06]} 52. Bc2 {[%clk 0:00:10]}  Ke6 {[%clk 0:00:06]} 53. Rd3 {[%clk 0:00:11]}  g5 {[%clk 0:00:05]} 54. Kf3 {[%clk 0:00:12]}  Be5 {[%clk 0:00:06]} 55. Rd1 {[%clk 0:00:12]}  g4+ {[%clk 0:00:06]} 56. Ke3 {[%clk 0:00:12]}  Kf6 {[%clk 0:00:06]} 57. Rf1 {[%clk 0:00:12]}  f4+ {[%clk 0:00:06]} 58. Ke4 {[%clk 0:00:12]}  Bd6 {[%clk 0:00:07]} 59. Kd5 {[%clk 0:00:11]}  Be5 {[%clk 0:00:07]} 60. Re1 {[%clk 0:00:11]}  Bc7 {[%clk 0:00:07]} 61. Re6+ {[%clk 0:00:11]}  Kg5 {[%clk 0:00:07]} 62. Ke4 {[%clk 0:00:09]}  f3 {[%clk 0:00:07]} 63. Re8 {[%clk 0:00:06]}  Kh4 {[%clk 0:00:07]} 64. Ke3 {[%clk 0:00:04]}  Bb6+ {[%clk 0:00:06]} 65. Kf4 {[%clk 0:00:05]}  Bc7+ {[%clk 0:00:07]} 66. Ke3 {[%clk 0:00:05]}  Bb6+ {[%clk 0:00:06]} 67. Kf4 {[%clk 0:00:05]}  Bc7+ {[%clk 0:00:07]} 68. Ke3 {[%clk 0:00:06]} 1/2-1/2


[Site "https://www.chess.com"]

[Event "Titled Tuesday Blitz April 05 Early 2022"]
[White "Plotnikov, Pavel"]
[Black "Kezin, Roman"]
[WhiteFideId "4170342"]
[BlackFideId "24124621"]
[WhiteElo "2538"]
[BlackElo "2775"]
[Result "0-1"]
[Round "02"]
[TimeControl "180+1"]
[Date "2022.04.05"]
[WhiteClock "0:00:33"]
[BlackClock "0:01:23"]

1. e4 {[%clk 0:02:59]}  c5 {[%clk 0:02:51]} 2. c3 {[%clk 0:02:59]}  Qa5 {[%clk 0:02:49]} 3. Nf3 {[%clk 0:02:58]}  Nc6 {[%clk 0:02:43]} 4. Be2 {[%clk 0:02:54]}  Nf6 {[%clk 0:02:42]} 5. d3 {[%clk 0:02:52]}  d5 {[%clk 0:02:41]} 6. exd5 {[%clk 0:02:50]}  Nxd5 {[%clk 0:02:42]} 7. O-O {[%clk 0:02:48]}  e6 {[%clk 0:02:39]} 8. Nbd2 {[%clk 0:02:47]}  Be7 {[%clk 0:02:38]} 9. a4 {[%clk 0:02:44]}  O-O {[%clk 0:02:37]} 10. Nc4 {[%clk 0:02:42]}  Qc7 {[%clk 0:02:37]} 11. Qc2 {[%clk 0:02:42]}  Nf4 {[%clk 0:02:36]} 12. Re1 {[%clk 0:02:32]}  Nxe2+ {[%clk 0:02:35]} 13. Qxe2 {[%clk 0:02:31]}  b6 {[%clk 0:02:35]} 14. Nfe5 {[%clk 0:02:13]}  Bb7 {[%clk 0:02:21]} 15. Bf4 {[%clk 0:02:08]}  Nxe5 {[%clk 0:02:15]} 16. Bxe5 {[%clk 0:02:02]}  Qc6 {[%clk 0:02:13]} 17. Qg4 {[%clk 0:01:34]}  f6 {[%clk 0:02:10]} 18. Bf4 {[%clk 0:01:30]}  e5 {[%clk 0:02:08]} 19. Ne3 {[%clk 0:01:02]}  f5 {[%clk 0:01:32]} 20. Nxf5 {[%clk 0:00:44]}  Rxf5 {[%clk 0:01:33]} 21. Bxe5 {[%clk 0:00:43]}  Rg5 {[%clk 0:01:31]} 22. Qc4+ {[%clk 0:00:34]}  Kh8 {[%clk 0:01:24]} 23. Re4 {[%clk 0:00:33]}  Qg6 {[%clk 0:01:23]} 0-1


[Site "https://www.chess.com"]

[Event "Titled Tuesday Blitz April 05 Early 2022"]
[White "Potapova, Margarita"]
[Black "Zhigalko, Sergei"]
[WhiteFideId "14126869"]
[BlackFideId "13502956"]
[WhiteElo "2216"]
[BlackElo "2662"]
[Result "0-1"]
[Round "02"]
[TimeControl "180+1"]
[Date "2022.04.05"]
[WhiteClock "0:00:07"]
[BlackClock "0:00:16"]

1. d4 {[%clk 0:03:00]}  Nf6 {[%clk 0:02:59]} 2. c4 {[%clk 0:03:01]}  e6 {[%clk 0:03:00]} 3. Nf3 {[%clk 0:02:57]}  b6 {[%clk 0:03:00]} 4. a3 {[%clk 0:02:49]}  Ba6 {[%clk 0:02:58]} 5. Qc2 {[%clk 0:02:47]}  Bb7 {[%clk 0:02:56]} 6. Nc3 {[%clk 0:02:45]}  c5 {[%clk 0:02:56]} 7. e4 {[%clk 0:02:45]}  cxd4 {[%clk 0:02:56]} 8. Nxd4 {[%clk 0:02:46]}  Nc6 {[%clk 0:02:57]} 9. Nxc6 {[%clk 0:02:43]}  Bxc6 {[%clk 0:02:58]} 10. Be2 {[%clk 0:02:41]}  Qc7 {[%clk 0:02:45]} 11. O-O {[%clk 0:02:39]}  Bc5 {[%clk 0:02:45]} 12. Rd1 {[%clk 0:01:55]}  h5 {[%clk 0:02:15]} 13. b4 {[%clk 0:01:46]}  Bd6 {[%clk 0:02:13]} 14. h3 {[%clk 0:01:46]}  Bh2+ {[%clk 0:02:07]} 15. Kh1 {[%clk 0:01:43]}  Be5 {[%clk 0:02:08]} 16. Bb2 {[%clk 0:01:29]}  Rc8 {[%clk 0:01:39]} 17. Bf3 {[%clk 0:01:19]}  O-O {[%clk 0:01:37]} 18. Qd3 {[%clk 0:01:08]}  a6 {[%clk 0:01:28]} 19. Rac1 {[%clk 0:01:08]}  Rfd8 {[%clk 0:01:27]} 20. Qe2 {[%clk 0:01:02]}  h4 {[%clk 0:01:15]} 21. Nd5 {[%clk 0:01:02]}  exd5 {[%clk 0:00:57]} 22. exd5 {[%clk 0:00:25]}  Bxb2 {[%clk 0:00:39]} 23. Qxb2 {[%clk 0:00:26]}  Ba4 {[%clk 0:00:33]} 24. d6 {[%clk 0:00:21]}  Qb8 {[%clk 0:00:31]} 25. Re1 {[%clk 0:00:21]}  Qxd6 {[%clk 0:00:28]} 26. Bb7 {[%clk 0:00:11]}  Rb8 {[%clk 0:00:25]} 27. Bf3 {[%clk 0:00:12]}  Bc6 {[%clk 0:00:24]} 28. Bxc6 {[%clk 0:00:11]}  dxc6 {[%clk 0:00:24]} 29. Qc3 {[%clk 0:00:11]}  Re8 {[%clk 0:00:21]} 30. Red1 {[%clk 0:00:11]}  Qf4 {[%clk 0:00:21]} 31. Qf3 {[%clk 0:00:04]}  Qxf3 {[%clk 0:00:20]} 32. gxf3 {[%clk 0:00:05]}  Re2 {[%clk 0:00:20]} 33. Rd6 {[%clk 0:00:04]}  Rxf2 {[%clk 0:00:19]} 34. Rxc6 {[%clk 0:00:04]}  Rxf3 {[%clk 0:00:19]} 35. c5 {[%clk 0:00:05]}  bxc5 {[%clk 0:00:19]} 36. bxc5 {[%clk 0:00:06]}  Rxh3+ {[%clk 0:00:19]} 37. Kg2 {[%clk 0:00:06]}  Rxa3 {[%clk 0:00:19]} 38. Rd6 {[%clk 0:00:06]}  Rb2+ {[%clk 0:00:18]} 39. Kg1 {[%clk 0:00:06]}  Rg3+ {[%clk 0:00:17]} 40. Kf1 {[%clk 0:00:07]}  Ne4 {[%clk 0:00:15]} 41. Rd8+ {[%clk 0:00:06]}  Kh7 {[%clk 0:00:15]} 42. c6 {[%clk 0:00:07]}  Rf2+ {[%clk 0:00:15]} 43. Ke1 {[%clk 0:00:07]}  Rg1# {[%clk 0:00:16]} 0-1


[Site "https://www.chess.com"]

[Event "Titled Tuesday Blitz April 05 Early 2022"]
[White "Prado Lobo, Jonas"]
[Black "Danilenko, Dmitriy"]
[WhiteFideId "32050666"]
[BlackFideId "14120844"]
[WhiteElo "2214"]
[BlackElo "2606"]
[Result "0-1"]
[Round "02"]
[TimeControl "180+1"]
[Date "2022.04.05"]
[WhiteClock "0:00:02"]
[BlackClock "0:00:16"]

1. d4 {[%clk 0:03:00]}  f5 {[%clk 0:03:00]} 2. Bf4 {[%clk 0:02:54]}  Nf6 {[%clk 0:02:57]} 3. e3 {[%clk 0:02:54]}  d6 {[%clk 0:02:55]} 4. Nf3 {[%clk 0:02:53]}  g6 {[%clk 0:02:55]} 5. h4 {[%clk 0:02:49]}  Bg7 {[%clk 0:02:55]} 6. h5 {[%clk 0:02:47]}  Be6 {[%clk 0:02:08]} 7. h6 {[%clk 0:02:38]}  Bf8 {[%clk 0:02:08]} 8. c4 {[%clk 0:02:38]}  c6 {[%clk 0:02:02]} 9. Nc3 {[%clk 0:02:33]}  Nbd7 {[%clk 0:01:56]} 10. d5 {[%clk 0:02:21]}  Bg8 {[%clk 0:01:54]} 11. Ng5 {[%clk 0:02:09]}  Qb6 {[%clk 0:01:29]} 12. Qc2 {[%clk 0:01:49]}  cxd5 {[%clk 0:01:13]} 13. cxd5 {[%clk 0:01:37]}  Nxd5 {[%clk 0:01:13]} 14. Nxd5 {[%clk 0:01:14]}  Bxd5 {[%clk 0:01:14]} 15. O-O-O {[%clk 0:01:13]}  Qc6 {[%clk 0:01:05]} 16. Rxd5 {[%clk 0:01:06]}  Qxd5 {[%clk 0:00:52]} 17. Bc4 {[%clk 0:01:06]}  Qc6 {[%clk 0:00:50]} 18. Nf7 {[%clk 0:00:27]}  d5 {[%clk 0:00:20]} 19. Nxh8 {[%clk 0:00:19]}  dxc4 {[%clk 0:00:20]} 20. Rd1 {[%clk 0:00:18]}  e5 {[%clk 0:00:15]} 21. Bg5 {[%clk 0:00:17]}  Be7 {[%clk 0:00:14]} 22. f4 {[%clk 0:00:07]}  Bxg5 {[%clk 0:00:14]} 23. fxg5 {[%clk 0:00:07]}  Ke7 {[%clk 0:00:15]} 24. Nxg6+ {[%clk 0:00:04]}  Qxg6 {[%clk 0:00:15]} 25. Qxc4 {[%clk 0:00:04]}  Qc6 {[%clk 0:00:15]} 26. Qxc6 {[%clk 0:00:04]}  bxc6 {[%clk 0:00:16]} 27. Rf1 {[%clk 0:00:03]}  Ke6 {[%clk 0:00:17]} 28. g4 {[%clk 0:00:03]}  fxg4 {[%clk 0:00:17]} 29. e4 {[%clk 0:00:03]}  Rg8 {[%clk 0:00:17]} 30. Rf5 {[%clk 0:00:02]}  g3 {[%clk 0:00:16]} 0-1


[Site "https://www.chess.com"]

[Event "Titled Tuesday Blitz April 05 Early 2022"]
[White "Przybylski, Wojciech"]
[Black "De Souza, Cristiano Gomes"]
[WhiteFideId "1117599"]
[BlackFideId "2151758"]
[WhiteElo "2133"]
[BlackElo "2068"]
[Result "0-1"]
[Round "02"]
[TimeControl "180+1"]
[Date "2022.04.05"]
[WhiteClock "0:00:07"]
[BlackClock "0:00:03"]

1. e4 {[%clk 0:03:00]}  c5 {[%clk 0:02:59]} 2. Nf3 {[%clk 0:03:00]}  d6 {[%clk 0:03:00]} 3. d4 {[%clk 0:02:59]}  cxd4 {[%clk 0:03:00]} 4. Nxd4 {[%clk 0:03:00]}  Nf6 {[%clk 0:03:00]} 5. Nc3 {[%clk 0:02:58]}  g6 {[%clk 0:03:00]} 6. h4 {[%clk 0:02:57]}  Bg7 {[%clk 0:03:00]} 7. f3 {[%clk 0:02:55]}  Nc6 {[%clk 0:02:58]} 8. Nxc6 {[%clk 0:02:50]}  bxc6 {[%clk 0:02:58]} 9. Bd3 {[%clk 0:02:48]}  a5 {[%clk 0:02:51]} 10. Bg5 {[%clk 0:02:43]}  h6 {[%clk 0:02:50]} 11. Be3 {[%clk 0:02:42]}  Ba6 {[%clk 0:02:48]} 12. Qd2 {[%clk 0:02:41]}  Nd7 {[%clk 0:02:43]} 13. h5 {[%clk 0:02:38]}  g5 {[%clk 0:02:42]} 14. Bxa6 {[%clk 0:02:21]}  Rxa6 {[%clk 0:02:40]} 15. Bd4 {[%clk 0:02:09]}  Bxd4 {[%clk 0:02:28]} 16. Qxd4 {[%clk 0:02:08]}  Ne5 {[%clk 0:02:28]} 17. O-O-O {[%clk 0:02:02]}  Qb6 {[%clk 0:02:21]} 18. Qxb6 {[%clk 0:01:47]}  Rxb6 {[%clk 0:02:20]} 19. b3 {[%clk 0:01:45]}  Kd7 {[%clk 0:02:14]} 20. Rd2 {[%clk 0:01:41]}  Rhb8 {[%clk 0:02:11]} 21. Rhd1 {[%clk 0:01:40]}  Kc7 {[%clk 0:02:08]} 22. a4 {[%clk 0:01:35]}  Nd7 {[%clk 0:01:59]} 23. g3 {[%clk 0:01:31]}  Nf6 {[%clk 0:01:57]} 24. Rh2 {[%clk 0:01:28]}  Rb4 {[%clk 0:01:46]} 25. Re1 {[%clk 0:01:28]}  Nd7 {[%clk 0:01:41]} 26. f4 {[%clk 0:01:26]}  gxf4 {[%clk 0:01:37]} 27. gxf4 {[%clk 0:01:27]}  Nc5 {[%clk 0:01:30]} 28. e5 {[%clk 0:01:24]}  Rxf4 {[%clk 0:01:24]} 29. exd6+ {[%clk 0:01:23]}  exd6 {[%clk 0:01:24]} 30. Re7+ {[%clk 0:01:20]}  Kb6 {[%clk 0:01:20]} 31. Rd2 {[%clk 0:01:16]}  d5 {[%clk 0:01:16]} 32. Kb2 {[%clk 0:01:02]}  Rg8 {[%clk 0:01:15]} 33. Rxd5 {[%clk 0:01:00]}  Rf2 {[%clk 0:00:44]} 34. Rd6 {[%clk 0:00:57]}  Rg5 {[%clk 0:00:28]} 35. Rxh6 {[%clk 0:00:41]}  Nd3+ {[%clk 0:00:19]} 36. Ka3 {[%clk 0:00:36]}  Nb4 {[%clk 0:00:19]} 37. Re2 {[%clk 0:00:30]}  Rxe2 {[%clk 0:00:18]} 38. Nxe2 {[%clk 0:00:30]}  Rg2 {[%clk 0:00:18]} 39. Nd4 {[%clk 0:00:23]}  Kc5 {[%clk 0:00:17]} 40. Kb2 {[%clk 0:00:03]}  Kxd4 {[%clk 0:00:15]} 41. Rf6 {[%clk 0:00:03]}  Rxc2+ {[%clk 0:00:14]} 42. Kb1 {[%clk 0:00:03]}  Kc3 {[%clk 0:00:14]} 43. Rf3+ {[%clk 0:00:03]}  Kd4 {[%clk 0:00:12]} 44. Rxf7 {[%clk 0:00:02]}  Rh2 {[%clk 0:00:09]} 45. Rf5 {[%clk 0:00:02]}  Kc3 {[%clk 0:00:08]} 46. Rc5+ {[%clk 0:00:02]}  Kxb3 {[%clk 0:00:08]} 47. Kc1 {[%clk 0:00:02]}  Nd3+ {[%clk 0:00:06]} 48. Kd1 {[%clk 0:00:02]}  Nxc5 {[%clk 0:00:06]} 49. h6 {[%clk 0:00:03]}  Rxh6 {[%clk 0:00:07]} 50. Kd2 {[%clk 0:00:03]}  Nxa4 {[%clk 0:00:07]} 51. Kd1 {[%clk 0:00:04]}  Nc3+ {[%clk 0:00:07]} 52. Kd2 {[%clk 0:00:05]}  a4 {[%clk 0:00:07]} 53. Kd3 {[%clk 0:00:06]}  a3 {[%clk 0:00:08]} 54. Kd4 {[%clk 0:00:07]}  a2 {[%clk 0:00:08]} 55. Kc5 {[%clk 0:00:08]}  Ne4+ {[%clk 0:00:03]} 56. Kb6 {[%clk 0:00:08]}  Rh5 {[%clk 0:00:04]} 57. Ka6 {[%clk 0:00:08]}  Rb5 {[%clk 0:00:04]} 58. Ka7 {[%clk 0:00:08]}  c5 {[%clk 0:00:03]} 59. Ka6 {[%clk 0:00:07]}  Rb4 {[%clk 0:00:03]} 60. Ka7 {[%clk 0:00:07]}  c4 {[%clk 0:00:03]} 61. Ka6 {[%clk 0:00:07]}  a1=Q# {[%clk 0:00:03]} 0-1


[Site "https://www.chess.com"]

[Event "Titled Tuesday Blitz April 05 Early 2022"]
[White "Rottenwohrer Suarez, Juan"]
[Black "Sliwicka, Alicja"]
[WhiteFideId "32068182"]
[BlackFideId "1150677"]
[WhiteElo "2158"]
[BlackElo "2120"]
[Result "0-1"]
[Round "02"]
[TimeControl "180+1"]
[Date "2022.04.05"]
[WhiteClock "0:00:01"]
[BlackClock "0:01:09"]

1. d4 {[%clk 0:03:00]}  Nf6 {[%clk 0:02:58]} 2. c4 {[%clk 0:03:01]}  c5 {[%clk 0:02:58]} 3. Nf3 {[%clk 0:03:00]}  cxd4 {[%clk 0:02:57]} 4. Nxd4 {[%clk 0:03:01]}  e5 {[%clk 0:02:58]} 5. Nb5 {[%clk 0:03:01]}  d5 {[%clk 0:02:58]} 6. cxd5 {[%clk 0:03:02]}  Bc5 {[%clk 0:02:58]} 7. N5c3 {[%clk 0:03:02]}  e4 {[%clk 0:02:56]} 8. g3 {[%clk 0:03:03]}  e3 {[%clk 0:02:51]} 9. Bxe3 {[%clk 0:03:01]}  Bxe3 {[%clk 0:02:51]} 10. fxe3 {[%clk 0:03:02]}  Ng4 {[%clk 0:02:46]} 11. Qd4 {[%clk 0:02:42]}  O-O {[%clk 0:02:44]} 12. Bg2 {[%clk 0:02:32]}  Re8 {[%clk 0:02:38]} 13. e4 {[%clk 0:02:32]}  Nd7 {[%clk 0:02:38]} 14. O-O {[%clk 0:02:29]}  Nde5 {[%clk 0:02:34]} 15. Nd2 {[%clk 0:02:22]}  Qg5 {[%clk 0:02:29]} 16. Nf3 {[%clk 0:02:15]}  Qh6 {[%clk 0:02:24]} 17. h3 {[%clk 0:02:13]}  Nxf3+ {[%clk 0:02:22]} 18. exf3 {[%clk 0:02:11]}  Ne3 {[%clk 0:02:20]} 19. Rf2 {[%clk 0:01:41]}  Nxg2 {[%clk 0:02:18]} 20. Rxg2 {[%clk 0:01:42]}  Qxh3 {[%clk 0:02:18]} 21. d6 {[%clk 0:01:08]}  Bd7 {[%clk 0:02:16]} 22. Nd5 {[%clk 0:01:06]}  Rad8 {[%clk 0:02:10]} 23. Nf4 {[%clk 0:00:56]}  Qh6 {[%clk 0:02:08]} 24. Rc1 {[%clk 0:00:47]}  Bc6 {[%clk 0:02:04]} 25. Rd2 {[%clk 0:00:47]}  Qg5 {[%clk 0:01:59]} 26. Kg2 {[%clk 0:00:45]}  Re5 {[%clk 0:01:50]} 27. Rh1 {[%clk 0:00:39]}  Qf6 {[%clk 0:01:44]} 28. Rh5 {[%clk 0:00:29]}  Rxh5 {[%clk 0:01:36]} 29. Qxf6 {[%clk 0:00:28]}  Rh2+ {[%clk 0:01:28]} 30. Kxh2 {[%clk 0:00:25]}  gxf6 {[%clk 0:01:29]} 31. Nh5 {[%clk 0:00:23]}  f5 {[%clk 0:01:29]} 32. exf5 {[%clk 0:00:19]}  Bxf3 {[%clk 0:01:30]} 33. Nf4 {[%clk 0:00:19]}  Kg7 {[%clk 0:01:29]} 34. Kg1 {[%clk 0:00:09]}  Kf6 {[%clk 0:01:28]} 35. Kf2 {[%clk 0:00:09]}  Bg4 {[%clk 0:01:21]} 36. Ke3 {[%clk 0:00:09]}  Bxf5 {[%clk 0:01:20]} 37. Nh5+ {[%clk 0:00:02]}  Ke5 {[%clk 0:01:15]} 38. Ng7 {[%clk 0:00:01]}  Bg6 {[%clk 0:01:09]} 0-1


[Site "https://www.chess.com"]

[Event "Titled Tuesday Blitz April 05 Early 2022"]
[White "Sadykov, Ramil"]
[Black "Mohammadian, Mohammad"]
[WhiteFideId "24113590"]
[BlackFideId "12566055"]
[WhiteElo "2300"]
[BlackElo "1544"]
[Result "1-0"]
[Round "02"]
[TimeControl "180+1"]
[Date "2022.04.05"]
[WhiteClock "0:00:52"]
[BlackClock "0:00:08"]

1. d4 {[%clk 0:02:59]}  Nf6 {[%clk 0:02:56]} 2. Nc3 {[%clk 0:02:58]}  d5 {[%clk 0:02:54]} 3. Bf4 {[%clk 0:02:53]}  e6 {[%clk 0:02:53]} 4. e3 {[%clk 0:02:51]}  Bb4 {[%clk 0:02:53]} 5. Nf3 {[%clk 0:02:33]}  Ne4 {[%clk 0:02:51]} 6. a3 {[%clk 0:02:28]}  Bxc3+ {[%clk 0:02:48]} 7. bxc3 {[%clk 0:02:28]}  Nxc3 {[%clk 0:02:43]} 8. Qd2 {[%clk 0:02:28]}  Ne4 {[%clk 0:02:39]} 9. Qb4 {[%clk 0:02:27]}  Nc6 {[%clk 0:02:25]} 10. Bb5 {[%clk 0:02:23]}  Bd7 {[%clk 0:02:23]} 11. Bxc6 {[%clk 0:02:18]}  Bxc6 {[%clk 0:02:17]} 12. O-O {[%clk 0:02:17]}  Nd6 {[%clk 0:02:12]} 13. Ne5 {[%clk 0:02:12]}  O-O {[%clk 0:02:08]} 14. Nxc6 {[%clk 0:02:09]}  bxc6 {[%clk 0:02:07]} 15. Qa4 {[%clk 0:02:06]}  Qd7 {[%clk 0:02:05]} 16. Rfb1 {[%clk 0:02:06]}  Nb5 {[%clk 0:01:54]} 17. Qa5 {[%clk 0:01:42]}  Rfb8 {[%clk 0:01:44]} 18. a4 {[%clk 0:01:37]}  Nd6 {[%clk 0:01:35]} 19. Rxb8+ {[%clk 0:01:33]}  Rxb8 {[%clk 0:01:35]} 20. Qxa7 {[%clk 0:01:34]}  Rd8 {[%clk 0:01:24]} 21. a5 {[%clk 0:01:23]}  f6 {[%clk 0:01:24]} 22. a6 {[%clk 0:01:20]}  Re8 {[%clk 0:01:21]} 23. Qc5 {[%clk 0:01:16]}  e5 {[%clk 0:01:18]} 24. Bg3 {[%clk 0:01:15]}  Ne4 {[%clk 0:01:16]} 25. Qb4 {[%clk 0:01:14]}  Nxg3 {[%clk 0:01:14]} 26. hxg3 {[%clk 0:01:13]}  exd4 {[%clk 0:01:14]} 27. exd4 {[%clk 0:01:12]}  Qg4 {[%clk 0:01:08]} 28. a7 {[%clk 0:01:10]}  Re2 {[%clk 0:00:46]} 29. a8=Q+ {[%clk 0:01:09]}  Kf7 {[%clk 0:00:46]} 30. Qaf8+ {[%clk 0:01:06]}  Kg6 {[%clk 0:00:45]} 31. Qc3 {[%clk 0:01:01]}  Qf5 {[%clk 0:00:32]} 32. Qd3 {[%clk 0:00:58]}  Rxf2 {[%clk 0:00:20]} 33. Qxf5+ {[%clk 0:00:57]}  Rxf5 {[%clk 0:00:20]} 34. Rf1 {[%clk 0:00:57]}  Rg5 {[%clk 0:00:12]} 35. Qe8+ {[%clk 0:00:54]}  Kh6 {[%clk 0:00:10]} 36. Rf4 {[%clk 0:00:52]}  Rxg3 {[%clk 0:00:08]} 37. Rh4+ {[%clk 0:00:52]} 1-0


[Site "https://www.chess.com"]

[Event "Titled Tuesday Blitz April 05 Early 2022"]
[White "Samarth, J Rao"]
[Black "Martin Duque, Jesus"]
[WhiteFideId "46652370"]
[BlackFideId "2208954"]
[WhiteElo "1514"]
[BlackElo "2243"]
[Result "1-0"]
[Round "02"]
[TimeControl "180+1"]
[Date "2022.04.05"]
[WhiteClock "0:00:14"]
[BlackClock "0:00:17"]

1. c4 {[%clk 0:03:00]}  b6 {[%clk 0:02:59]} 2. d4 {[%clk 0:02:57]}  Nf6 {[%clk 0:02:59]} 3. Nc3 {[%clk 0:02:57]}  Bb7 {[%clk 0:02:59]} 4. f3 {[%clk 0:02:56]}  d5 {[%clk 0:02:59]} 5. cxd5 {[%clk 0:02:56]}  Nxd5 {[%clk 0:03:00]} 6. e4 {[%clk 0:02:57]}  Nxc3 {[%clk 0:03:00]} 7. bxc3 {[%clk 0:02:57]}  e5 {[%clk 0:03:01]} 8. d5 {[%clk 0:02:57]}  c6 {[%clk 0:03:01]} 9. c4 {[%clk 0:02:57]}  Bb4+ {[%clk 0:03:01]} 10. Bd2 {[%clk 0:02:57]}  Bxd2+ {[%clk 0:03:01]} 11. Qxd2 {[%clk 0:02:58]}  O-O {[%clk 0:03:01]} 12. Bd3 {[%clk 0:02:55]}  Nd7 {[%clk 0:03:01]} 13. Ne2 {[%clk 0:02:55]}  Nc5 {[%clk 0:03:00]} 14. Bc2 {[%clk 0:02:55]}  f5 {[%clk 0:02:54]} 15. O-O {[%clk 0:02:51]}  f4 {[%clk 0:02:51]} 16. Qc3 {[%clk 0:02:47]}  Qg5 {[%clk 0:02:49]} 17. Rad1 {[%clk 0:02:42]}  Rf6 {[%clk 0:02:48]} 18. Qd2 {[%clk 0:02:25]}  Rd8 {[%clk 0:02:47]} 19. Kh1 {[%clk 0:02:22]}  Rh6 {[%clk 0:02:45]} 20. g3 {[%clk 0:02:13]}  Rdd6 {[%clk 0:02:41]} 21. Rg1 {[%clk 0:02:00]}  Ba6 {[%clk 0:02:39]} 22. Rg2 {[%clk 0:01:55]}  Bxc4 {[%clk 0:02:38]} 23. gxf4 {[%clk 0:01:52]}  Qh5 {[%clk 0:02:13]} 24. fxe5 {[%clk 0:01:40]}  Qxe5 {[%clk 0:01:54]} 25. Ng3 {[%clk 0:01:21]}  cxd5 {[%clk 0:01:42]} 26. Nf5 {[%clk 0:01:13]}  Kh8 {[%clk 0:00:57]} 27. f4 {[%clk 0:00:40]}  Qb2 {[%clk 0:00:52]} 28. e5 {[%clk 0:00:37]}  Rdg6 {[%clk 0:00:45]} 29. Nxh6 {[%clk 0:00:33]}  Rxh6 {[%clk 0:00:40]} 30. Bb1 {[%clk 0:00:29]}  Qb5 {[%clk 0:00:37]} 31. f5 {[%clk 0:00:25]}  Qe8 {[%clk 0:00:29]} 32. Rdg1 {[%clk 0:00:23]}  Qh5 {[%clk 0:00:19]} 33. Qf4 {[%clk 0:00:18]}  d4 {[%clk 0:00:18]} 34. e6 {[%clk 0:00:14]}  Bd5 {[%clk 0:00:17]} 35. Qb8+ {[%clk 0:00:14]} 1-0


[Site "https://www.chess.com"]